[Event "*** Titled Tuesday 3|2 Blitz"]
[Site "Chess.com"]
[Date "2015.03.03"]
[Round "3"]
[White "GGuseinov"]
[Black "Mugzyyy"]
[Result "1-0"]
[WhiteElo "2541"]
[BlackElo "2270"]
[TimeControl "180+2"]
[EndTime "11:38:04 PST"]
[Termination "GGuseinov won on time"]

1. e4 {[%clk 0:02:58.6]} 1... e6 {[%clk 0:02:57.3]} 2. d4 {[%clk 0:02:59.5]}
2... d5 {[%clk 0:02:58.6]} 3. Nd2 {[%clk 0:03:00]} 3... Be7 {[%clk 0:02:59.7]}
4. c3 {[%clk 0:02:57]} 4... c5 {[%clk 0:02:59.6]} 5. dxc5 {[%clk 0:02:51.9]}
5... Nf6 {[%clk 0:03:00.8]} 6. exd5 {[%clk 0:02:49.9]} 6... Qxd5 {[%clk
0:03:02]} 7. Ngf3 {[%clk 0:02:51]} 7... O-O {[%clk 0:02:52.5]} 8. Bc4 {[%clk
0:02:51.7]} 8... Qxc5 {[%clk 0:02:53.6]} 9. O-O {[%clk 0:02:51.7]} 9... b5
{[%clk 0:02:50.4]} 10. Bd3 {[%clk 0:02:46.9]} 10... Bb7 {[%clk 0:02:51.5]} 11.
Qe2 {[%clk 0:02:48.1]} 11... a6 {[%clk 0:02:48.8]} 12. Ne4 {[%clk 0:02:45.1]}
12... Nxe4 {[%clk 0:02:49.9]} 13. Bxe4 {[%clk 0:02:46.7]} 13... Bxe4 {[%clk
0:02:51.2]} 14. Qxe4 {[%clk 0:02:47.7]} 14... Nd7 {[%clk 0:02:52.5]} 15. Be3
{[%clk 0:02:47.2]} 15... Qc4 {[%clk 0:02:49.3]} 16. Qxc4 {[%clk 0:02:42.9]}
16... bxc4 {[%clk 0:02:50.2]} 17. Rfd1 {[%clk 0:02:44.6]} 17... Nc5 {[%clk
0:02:50]} 18. Bxc5 {[%clk 0:02:44]} 18... Bxc5 {[%clk 0:02:50.7]} 19. Ne5 {[%clk
0:02:45.1]} 19... Rfb8 {[%clk 0:02:46.1]} 20. Nxc4 {[%clk 0:02:42.6]} 20... a5
{[%clk 0:02:43.1]} 21. Rd7 {[%clk 0:02:38.2]} 21... a4 {[%clk 0:02:42.4]} 22.
Rad1 {[%clk 0:02:38.2]} 22... Rc8 {[%clk 0:02:36.3]} 23. Kf1 {[%clk 0:02:27.2]}
23... Rab8 {[%clk 0:02:28.5]} 24. R1d2 {[%clk 0:02:27.3]} 24... Bf8 {[%clk
0:02:20.5]} 25. Nd6 {[%clk 0:02:18.8]} 25... Bxd6 {[%clk 0:02:03.8]} 26. R7xd6
{[%clk 0:02:20.7]} 26... g6 {[%clk 0:02:05.1]} 27. Ra6 {[%clk 0:02:21.1]} 27...
Rc4 {[%clk 0:02:05.2]} 28. f3 {[%clk 0:02:15.7]} 28... Rb5 {[%clk 0:02:02.9]}
29. Ke2 {[%clk 0:02:12.4]} 29... Rh4 {[%clk 0:01:56.5]} 30. h3 {[%clk
0:02:11.3]} 30... Rg5 {[%clk 0:01:57.3]} 31. Kd1 {[%clk 0:02:12]} 31... h5
{[%clk 0:01:35.6]} 32. Kc2 {[%clk 0:02:06.2]} 32... Kg7 {[%clk 0:01:33.5]} 33.
b4 {[%clk 0:02:03.9]} 33... axb3+ {[%clk 0:01:34.1]} 34. axb3 {[%clk 0:02:04.6]}
34... Rc5 {[%clk 0:01:33.7]} 35. Kb2 {[%clk 0:01:59.6]} 35... Rf4 {[%clk
0:01:34.8]} 36. b4 {[%clk 0:01:59.2]} 36... Rc7 {[%clk 0:01:23.4]} 37. Ra3
{[%clk 0:01:54.2]} 37... g5 {[%clk 0:01:22.2]} 38. Rb3 {[%clk 0:01:55.2]} 38...
f5 {[%clk 0:01:21.3]} 39. b5 {[%clk 0:01:56.2]} 39... g4 {[%clk 0:01:22.9]} 40.
hxg4 {[%clk 0:01:55.5]} 40... hxg4 {[%clk 0:01:24.4]} 41. fxg4 {[%clk
0:01:56.6]} 41... fxg4 {[%clk 0:01:25.9]} 42. b6 {[%clk 0:01:48.5]} 42... Rb7
{[%clk 0:01:27.2]} 43. Ka3 {[%clk 0:01:48.5]} 43... Kf6 {[%clk 0:01:13.5]} 44.
Rd6 {[%clk 0:01:30.9]} 44... Rc4 {[%clk 0:01:07.9]} 45. Rd4 {[%clk 0:01:25.6]}
45... Rc6 {[%clk 0:01:08.5]} 46. Rdb4 {[%clk 0:01:20.8]} 46... Ke5 {[%clk
0:00:52.1]} 47. Ka4 {[%clk 0:01:21]} 47... Kd6 {[%clk 0:00:40.5]} 48. Ka5 {[%clk
0:01:22]} 48... Rc8 {[%clk 0:00:25]} 49. Ka6 {[%clk 0:01:12.6]} 49... Rg7 {[%clk
0:00:21.2]} 50. b7 {[%clk 0:01:08.2]} 50... Rc6+ {[%clk 0:00:15.3]} 51. Rb6
{[%clk 0:01:06]} 1-0

[Event "*** Titled Tuesday 3|2 Blitz"]
[Site "Chess.com"]
[Date "2015.03.03"]
[Round "3"]
[White "Rijeka1999"]
[Black "Gevorg_Harutjunyan"]
[Result "0-1"]
[WhiteElo "2242"]
[BlackElo "2505"]
[TimeControl "180+2"]
[EndTime "11:38:04 PST"]
[Termination "Gevorg_Harutjunyan won by resignation"]

1. e4 {[%clk 0:03:00]} 1... c6 {[%clk 0:02:59]} 2. d4 {[%clk 0:03:00.7]} 2... d5
{[%clk 0:03:00.3]} 3. Nc3 {[%clk 0:03:02.4]} 3... dxe4 {[%clk 0:03:01.6]} 4.
Nxe4 {[%clk 0:03:04.1]} 4... Bf5 {[%clk 0:03:03.2]} 5. Ng3 {[%clk 0:03:05.2]}
5... Bg6 {[%clk 0:03:04.7]} 6. Bc4 {[%clk 0:03:06.9]} 6... e6 {[%clk 0:03:05.4]}
7. N1e2 {[%clk 0:03:08.1]} 7... Bd6 {[%clk 0:03:05.4]} 8. h4 {[%clk 0:03:09.3]}
8... h6 {[%clk 0:03:05.2]} 9. Nf4 {[%clk 0:03:10.5]} 9... Bxf4 {[%clk
0:03:04.9]} 10. Bxf4 {[%clk 0:03:12]} 10... Nf6 {[%clk 0:03:06.5]} 11. Qd2
{[%clk 0:03:11.4]} 11... Nbd7 {[%clk 0:02:58.5]} 12. O-O-O {[%clk 0:03:11.7]}
12... Nb6 {[%clk 0:02:58.9]} 13. Bd3 {[%clk 0:03:00.7]} 13... Bxd3 {[%clk
0:02:54]} 14. Qxd3 {[%clk 0:03:01.5]} 14... Qd5 {[%clk 0:02:55.6]} 15. Kb1
{[%clk 0:02:58.4]} 15... Qb5 {[%clk 0:02:47.7]} 16. Qxb5 {[%clk 0:02:43.3]}
16... cxb5 {[%clk 0:02:49.6]} 17. Be5 {[%clk 0:02:42]} 17... Ng4 {[%clk
0:02:46.8]} 18. Rd2 {[%clk 0:02:29.4]} 18... Nc4 {[%clk 0:02:40]} 19. Re2 {[%clk
0:02:30.3]} 19... Ngxe5 {[%clk 0:02:24.4]} 20. dxe5 {[%clk 0:02:30.4]} 20...
O-O-O {[%clk 0:02:26]} 21. Ne4 {[%clk 0:02:28.5]} 21... Nxe5 {[%clk 0:02:25.2]}
22. b3 {[%clk 0:02:21.2]} 22... Nc6 {[%clk 0:02:14.3]} 23. Rh3 {[%clk
0:02:18.7]} 23... Rd5 {[%clk 0:02:08.4]} 24. Rg3 {[%clk 0:02:09.3]} 24... g6
{[%clk 0:01:45.3]} 25. Rf3 {[%clk 0:02:09.7]} 25... Nd4 {[%clk 0:01:43.3]} 26.
Rc3+ {[%clk 0:01:55.9]} 26... Kb8 {[%clk 0:01:44.2]} 27. Rd2 {[%clk 0:01:50.7]}
27... Rhd8 {[%clk 0:01:42.2]} 28. Rcd3 {[%clk 0:01:46.6]} 28... Nf5 {[%clk
0:01:36.6]} 29. Rxd5 {[%clk 0:01:25.6]} 29... Rxd5 {[%clk 0:01:38.5]} 30. g3
{[%clk 0:01:11.7]} 30... Rxd2 {[%clk 0:01:37.2]} 31. Nxd2 {[%clk 0:01:12.7]}
31... Kc7 {[%clk 0:01:35.1]} 32. c3 {[%clk 0:01:13.5]} 32... Kc6 {[%clk
0:01:28.4]} 33. Kc2 {[%clk 0:01:14.8]} 33... Nd6 {[%clk 0:01:25.9]} 34. Kd3
{[%clk 0:01:15.1]} 34... e5 {[%clk 0:01:22.7]} 35. f3 {[%clk 0:00:54.9]} 35...
f5 {[%clk 0:01:23]} 36. Nf1 {[%clk 0:00:47.3]} 36... e4+ {[%clk 0:01:18.1]} 37.
fxe4 {[%clk 0:00:47.4]} 37... Nxe4 {[%clk 0:01:20]} 38. Kd4 {[%clk 0:00:46.5]}
38... Kd6 {[%clk 0:01:14.7]} 39. g4 {[%clk 0:00:39.4]} 39... Ke6 {[%clk
0:01:15.8]} 40. Ne3 {[%clk 0:00:34.4]} 40... Nf6 {[%clk 0:01:03.7]} 41. gxf5+
{[%clk 0:00:28]} 41... gxf5 {[%clk 0:01:05.6]} 42. c4 {[%clk 0:00:20.7]} 42...
bxc4 {[%clk 0:01:05.1]} 43. bxc4 {[%clk 0:00:22]} 43... f4 {[%clk 0:01:06]} 44.
Ng2 {[%clk 0:00:19.3]} 44... Kf5 {[%clk 0:01:07.3]} 45. Kc5 {[%clk 0:00:18.3]}
45... f3 {[%clk 0:01:08]} 46. Ne3+ {[%clk 0:00:18.8]} 46... Ke4 {[%clk
0:01:08.7]} 47. Nf1 {[%clk 0:00:19.7]} 47... Kd3 {[%clk 0:01:04.7]} 48. a4
{[%clk 0:00:14.2]} 48... f2 {[%clk 0:01:02.4]} 49. a5 {[%clk 0:00:12.4]} 49...
Ne4+ {[%clk 0:01:02]} 50. Kd5 {[%clk 0:00:12.3]} 50... Nd2 {[%clk 0:00:55]} 51.
Ng3 {[%clk 0:00:11.2]} 51... Nxc4 {[%clk 0:00:55.7]} 0-1

[Event "*** Titled Tuesday 3|2 Blitz"]
[Site "Chess.com"]
[Date "2015.03.03"]
[Round "3"]
[White "GeorgMeier"]
[Black "Cryptochess"]
[Result "1-0"]
[WhiteElo "2733"]
[BlackElo "2392"]
[TimeControl "180+2"]
[EndTime "11:38:05 PST"]
[Termination "GeorgMeier won by resignation"]

1. Nf3 {[%clk 0:03:00]} 1... Nf6 {[%clk 0:02:57.7]} 2. g3 {[%clk 0:03:01.2]}
2... e6 {[%clk 0:02:58.9]} 3. Bg2 {[%clk 0:03:02.6]} 3... d5 {[%clk 0:03:00.2]}
4. O-O {[%clk 0:03:04.1]} 4... Be7 {[%clk 0:03:01.6]} 5. c4 {[%clk 0:03:05.5]}
5... dxc4 {[%clk 0:03:00.5]} 6. Na3 {[%clk 0:03:06]} 6... c6 {[%clk 0:02:52.4]}
7. Nxc4 {[%clk 0:03:06.1]} 7... O-O {[%clk 0:02:52]} 8. d4 {[%clk 0:03:06.6]}
8... Nbd7 {[%clk 0:02:49.2]} 9. b3 {[%clk 0:03:04.9]} 9... b5 {[%clk 0:02:47.7]}
10. Nce5 {[%clk 0:03:00]} 10... Bb7 {[%clk 0:02:48.4]} 11. Bb2 {[%clk
0:03:00.7]} 11... c5 {[%clk 0:02:45.6]} 12. Rc1 {[%clk 0:02:59.8]} 12... Rc8
{[%clk 0:02:43.3]} 13. dxc5 {[%clk 0:02:55.3]} 13... Nxc5 {[%clk 0:02:41.2]} 14.
Rc2 {[%clk 0:02:41.6]} 14... Qb6 {[%clk 0:02:38.9]} 15. Qa1 {[%clk 0:02:30.5]}
15... Nxb3 {[%clk 0:02:22.4]} 16. Qb1 {[%clk 0:02:28.1]} 16... Nc5 {[%clk
0:02:03.5]} 17. Rd2 {[%clk 0:02:09.6]} 17... Nce4 {[%clk 0:01:57]} 18. Rc2
{[%clk 0:02:06.4]} 18... Bc5 {[%clk 0:01:49.9]} 19. Nd3 {[%clk 0:02:03.8]} 19...
Be7 {[%clk 0:00:49.3]} 20. Bd4 {[%clk 0:02:04]} 20... Qa5 {[%clk 0:00:48.9]} 21.
Rfc1 {[%clk 0:02:05]} 21... Rxc2 {[%clk 0:00:45.5]} 22. Rxc2 {[%clk 0:02:06.9]}
22... Rc8 {[%clk 0:00:46.3]} 23. Nfe5 {[%clk 0:02:06.3]} 23... Rxc2 {[%clk
0:00:39]} 24. Qxc2 {[%clk 0:02:08.2]} 24... Bd6 {[%clk 0:00:39.9]} 25. f3 {[%clk
0:02:03.5]} 25... Bxe5 {[%clk 0:00:29.6]} 26. Bxe5 {[%clk 0:02:03.9]} 26... Qb6+
{[%clk 0:00:30.1]} 27. Kf1 {[%clk 0:01:53.6]} 27... Nd6 {[%clk 0:00:30.6]} 28.
Qc5 {[%clk 0:01:50.4]} 28... Nc4 {[%clk 0:00:21.7]} 29. Bd4 {[%clk 0:01:21.5]}
29... Qxc5 {[%clk 0:00:20.4]} 30. Nxc5 {[%clk 0:01:23.4]} 30... Bc6 {[%clk
0:00:21.2]} 31. e4 {[%clk 0:01:24.3]} 31... a5 {[%clk 0:00:21.5]} 32. Ke2 {[%clk
0:01:24.2]} 32... e5 {[%clk 0:00:22.2]} 33. Bf2 {[%clk 0:01:21.4]} 33... Nd7
{[%clk 0:00:22.9]} 34. Kd3 {[%clk 0:01:18.7]} 34... Nd6 {[%clk 0:00:15.2]} 35.
Bh3 {[%clk 0:01:10.1]} 35... Nxc5+ {[%clk 0:00:11.4]} 36. Bxc5 {[%clk
0:01:10.6]} 36... Nc4 {[%clk 0:00:13]} 37. Kc3 {[%clk 0:01:05.9]} 37... g6
{[%clk 0:00:10]} 38. a4 {[%clk 0:01:03.6]} 38... Kg7 {[%clk 0:00:06.6]} 39. Bf1
{[%clk 0:01:02.5]} 39... f6 {[%clk 0:00:03.9]} 40. axb5 {[%clk 0:01:03.2]} 40...
Bxb5 {[%clk 0:00:04.9]} 41. Bxc4 {[%clk 0:01:04]} 41... Bxc4 {[%clk 0:00:04.7]}
42. Kxc4 {[%clk 0:01:05.9]} 42... f5 {[%clk 0:00:06.6]} 43. Kd5 {[%clk
0:01:01.6]} 43... fxe4 {[%clk 0:00:08.5]} 44. fxe4 {[%clk 0:01:01.8]} 44... Kf6
{[%clk 0:00:10.4]} 45. Bd6 {[%clk 0:01:02.9]} 45... a4 {[%clk 0:00:12.3]} 46.
Bxe5+ {[%clk 0:01:03.8]} 46... Kg5 {[%clk 0:00:14.2]} 47. Bb2 {[%clk 0:01:04.4]}
47... Kg4 {[%clk 0:00:16.1]} 48. e5 {[%clk 0:01:05.5]} 48... g5 {[%clk
0:00:17.8]} 49. e6 {[%clk 0:01:06.5]} 49... h5 {[%clk 0:00:19.7]} 50. e7 {[%clk
0:01:07.2]} 50... Kh3 {[%clk 0:00:21.6]} 51. e8=Q {[%clk 0:01:07.2]} 51... h4
{[%clk 0:00:23.5]} 52. gxh4 {[%clk 0:01:06.3]} 52... g4 {[%clk 0:00:25.4]} 53.
Qe6 {[%clk 0:01:06.1]} 53... Kg2 {[%clk 0:00:27]} 54. Qxg4+ {[%clk 0:01:06.7]}
54... Kh1 {[%clk 0:00:28.9]} 55. Qf3+ {[%clk 0:01:07.4]} 55... Kg1 {[%clk
0:00:29.5]} 56. Bd4+ {[%clk 0:01:08]} 56... Kxh2 {[%clk 0:00:31]} 57. h5 {[%clk
0:01:08.8]} 57... a3 {[%clk 0:00:32.2]} 58. h6 {[%clk 0:01:09.8]} 58... a2
{[%clk 0:00:34.1]} 1-0

[Event "*** Titled Tuesday 3|2 Blitz"]
[Site "Chess.com"]
[Date "2015.03.03"]
[Round "3"]
[White "alturas_pacificas"]
[Black "Danirod"]
[Result "0-1"]
[WhiteElo "2059"]
[BlackElo "2316"]
[TimeControl "180+2"]
[EndTime "11:38:17 PST"]
[Termination "Danirod won by resignation"]

1. d4 {[%clk 0:03:00]} 1... Nf6 {[%clk 0:02:58.5]} 2. Bf4 {[%clk 0:02:59.7]}
2... b6 {[%clk 0:02:57.5]} 3. Nf3 {[%clk 0:02:58.3]} 3... Bb7 {[%clk 0:02:58.7]}
4. e3 {[%clk 0:02:59.9]} 4... e6 {[%clk 0:02:59.3]} 5. Bd3 {[%clk 0:02:58.9]}
5... c5 {[%clk 0:03:00.3]} 6. c3 {[%clk 0:02:59.7]} 6... Nc6 {[%clk 0:03:01.1]}
7. Nbd2 {[%clk 0:03:00.5]} 7... Be7 {[%clk 0:03:02]} 8. h3 {[%clk 0:03:00.8]}
8... d6 {[%clk 0:03:02.1]} 9. O-O {[%clk 0:03:01.3]} 9... O-O {[%clk 0:03:02.8]}
10. a4 {[%clk 0:02:57.7]} 10... Rc8 {[%clk 0:03:03.6]} 11. Qe2 {[%clk 0:02:57]}
11... Re8 {[%clk 0:02:57.2]} 12. Bh2 {[%clk 0:02:55.3]} 12... Bf8 {[%clk
0:02:56.4]} 13. Nc4 {[%clk 0:02:44.9]} 13... g6 {[%clk 0:02:44.2]} 14. Rad1
{[%clk 0:02:38.1]} 14... d5 {[%clk 0:02:33.3]} 15. Nce5 {[%clk 0:02:37.3]} 15...
c4 {[%clk 0:02:21]} 16. Bc2 {[%clk 0:02:17.2]} 16... Qe7 {[%clk 0:02:02.7]} 17.
Ra1 {[%clk 0:02:11]} 17... Bg7 {[%clk 0:01:58.3]} 18. Rfe1 {[%clk 0:02:07.8]}
18... Nd7 {[%clk 0:01:58]} 19. Nxd7 {[%clk 0:01:53.5]} 19... Qxd7 {[%clk
0:01:58.8]} 20. e4 {[%clk 0:01:55.1]} 20... e5 {[%clk 0:01:41.5]} 21. exd5
{[%clk 0:01:36.2]} 21... Qxd5 {[%clk 0:01:41.8]} 22. Be4 {[%clk 0:01:29.7]}
22... Qd7 {[%clk 0:01:42.9]} 23. Bxc6 {[%clk 0:01:24.9]} 23... Bxc6 {[%clk
0:01:43.3]} 24. dxe5 {[%clk 0:01:25.2]} 24... Bxa4 {[%clk 0:01:39.5]} 25. Nd4
{[%clk 0:01:22.8]} 25... a5 {[%clk 0:01:29.1]} 26. f4 {[%clk 0:01:12.8]} 26...
Bc6 {[%clk 0:01:29]} 27. Rad1 {[%clk 0:01:03]} 27... Qb7 {[%clk 0:01:28.6]} 28.
Kh1 {[%clk 0:00:54.6]} 28... b5 {[%clk 0:01:27.8]} 29. Bg1 {[%clk 0:00:53.2]}
29... Bh6 {[%clk 0:01:26.9]} 30. Qg4 {[%clk 0:00:51.8]} 30... Bg7 {[%clk
0:01:18.3]} 31. Rd2 {[%clk 0:00:50.1]} 31... b4 {[%clk 0:01:17.5]} 32. Rc1
{[%clk 0:00:41]} 32... Be4 {[%clk 0:01:17.4]} 33. Qe2 {[%clk 0:00:28.6]} 33...
Bd5 {[%clk 0:01:13.7]} 34. cxb4 {[%clk 0:00:29.1]} 34... axb4 {[%clk 0:01:14.4]}
35. Rdc2 {[%clk 0:00:27.3]} 35... Qd7 {[%clk 0:01:11]} 36. Nf3 {[%clk
0:00:24.1]} 36... Bh6 {[%clk 0:01:07.8]} 37. Be3 {[%clk 0:00:24.4]} 37... Qf5
{[%clk 0:00:59.9]} 38. Kh2 {[%clk 0:00:18.8]} 38... Bxf4+ {[%clk 0:00:59.8]} 39.
Bxf4 {[%clk 0:00:20.2]} 39... Qxf4+ {[%clk 0:01:01.3]} 40. Kg1 {[%clk
0:00:21.5]} 40... c3 {[%clk 0:00:47.4]} 41. bxc3 {[%clk 0:00:21.4]} 41... bxc3
{[%clk 0:00:48.8]} 42. Rxc3 {[%clk 0:00:21.5]} 42... Qxc1+ {[%clk 0:00:49.5]}
43. Rxc1 {[%clk 0:00:23.4]} 43... Rxc1+ {[%clk 0:00:50.6]} 44. Kh2 {[%clk
0:00:24.8]} 44... Rc6 {[%clk 0:00:46.6]} 45. Nd4 {[%clk 0:00:24.7]} 45... Rc4
{[%clk 0:00:44]} 46. Qe3 {[%clk 0:00:24.1]} 46... Be6 {[%clk 0:00:41.3]} 47. Nb5
{[%clk 0:00:23.9]} 47... Rb8 {[%clk 0:00:37.6]} 48. Nd6 {[%clk 0:00:24.7]} 48...
Rc2 {[%clk 0:00:38.9]} 49. Qg5 {[%clk 0:00:17.6]} 49... Bd5 {[%clk 0:00:28.3]}
0-1

[Event "*** Titled Tuesday 3|2 Blitz"]
[Site "Chess.com"]
[Date "2015.03.03"]
[Round "3"]
[White "Brandon_Clarke"]
[Black "WanderingPuppet"]
[Result "1-0"]
[WhiteElo "2314"]
[BlackElo "2095"]
[TimeControl "180+2"]
[EndTime "11:38:22 PST"]
[Termination "Brandon_Clarke won on time"]

1. e4 {[%clk 0:03:00]} 1... c5 {[%clk 0:02:58.8]} 2. Nf3 {[%clk 0:03:00.2]} 2...
d6 {[%clk 0:02:57.7]} 3. d4 {[%clk 0:03:00.9]} 3... cxd4 {[%clk 0:02:59.6]} 4.
Nxd4 {[%clk 0:03:02.8]} 4... Nf6 {[%clk 0:03:01.2]} 5. Nc3 {[%clk 0:03:03.7]}
5... a6 {[%clk 0:03:02.8]} 6. Rg1 {[%clk 0:03:04.2]} 6... e6 {[%clk 0:03:02]} 7.
g4 {[%clk 0:03:05]} 7... h6 {[%clk 0:03:02.9]} 8. Be3 {[%clk 0:02:44.2]} 8... b5
{[%clk 0:03:02.2]} 9. Bg2 {[%clk 0:02:43.1]} 9... e5 {[%clk 0:02:40.2]} 10. Nf5
{[%clk 0:02:39.6]} 10... g6 {[%clk 0:02:39.6]} 11. Ng3 {[%clk 0:01:55.7]} 11...
Bxg4 {[%clk 0:02:34.1]} 12. f3 {[%clk 0:01:56.7]} 12... Be6 {[%clk 0:02:31.5]}
13. Qd2 {[%clk 0:01:57.8]} 13... Nbd7 {[%clk 0:02:26.7]} 14. O-O-O {[%clk
0:01:58.5]} 14... Qa5 {[%clk 0:02:14.7]} 15. Kb1 {[%clk 0:01:53.8]} 15... b4
{[%clk 0:02:14.4]} 16. Nd5 {[%clk 0:01:54.3]} 16... Bxd5 {[%clk 0:02:14.9]} 17.
exd5 {[%clk 0:01:55.3]} 17... Bg7 {[%clk 0:01:36.7]} 18. h4 {[%clk 0:01:51.1]}
18... h5 {[%clk 0:01:19.1]} 19. Bh3 {[%clk 0:01:37.2]} 19... Nb6 {[%clk
0:01:04.6]} 20. Bxb6 {[%clk 0:01:36.9]} 20... Qxb6 {[%clk 0:01:05.4]} 21. f4
{[%clk 0:01:38.1]} 21... exf4 {[%clk 0:00:51.1]} 22. Rge1+ {[%clk 0:01:36.6]}
22... Kf8 {[%clk 0:00:52.6]} 23. Qxf4 {[%clk 0:01:36.8]} 23... a5 {[%clk
0:00:37.1]} 24. Rf1 {[%clk 0:01:12.8]} 24... Ra7 {[%clk 0:00:32.8]} 25. Ne4
{[%clk 0:00:56.9]} 25... Nxe4 {[%clk 0:00:33]} 26. Qxe4 {[%clk 0:00:58]} 26...
Rh6 {[%clk 0:00:10.7]} 27. Rde1 {[%clk 0:00:49]} 27... Qd8 {[%clk 0:00:10.4]}
28. Be6 {[%clk 0:00:48.7]} 28... Kg8 {[%clk 0:00:07.2]} 29. Bxf7+ {[%clk
0:00:46.3]} 29... Rxf7 {[%clk 0:00:09.1]} 30. Qe6 {[%clk 0:00:47.5]} 30... Qf8
{[%clk 0:00:08.6]} 31. Rxf7 {[%clk 0:00:28.3]} 31... Qxf7 {[%clk 0:00:09.3]} 32.
Qxd6 {[%clk 0:00:30.2]} 32... g5 {[%clk 0:00:08.1]} 33. Qd8+ {[%clk 0:00:29.7]}
33... Qf8 {[%clk 0:00:06.8]} 34. Qxg5 {[%clk 0:00:29.9]} 34... Qf6 {[%clk
0:00:07.9]} 35. Qc1 {[%clk 0:00:24.6]} 35... Rg6 {[%clk 0:00:08.5]} 36. Re6
{[%clk 0:00:20.2]} 36... Qf5 {[%clk 0:00:09.5]} 37. Rxg6 {[%clk 0:00:21.2]}
37... Qxg6 {[%clk 0:00:10.6]} 38. Qd2 {[%clk 0:00:22.5]} 38... Qd6 {[%clk
0:00:11.3]} 39. c4 {[%clk 0:00:22.9]} 39... bxc3 {[%clk 0:00:11.8]} 40. bxc3
{[%clk 0:00:24.4]} 40... Qb6+ {[%clk 0:00:10]} 41. Kc2 {[%clk 0:00:25.5]} 41...
Bf8 {[%clk 0:00:07.5]} 42. Qg5+ {[%clk 0:00:26]} 42... Kf7 {[%clk 0:00:07.8]}
43. Qxh5+ {[%clk 0:00:27.2]} 43... Ke7 {[%clk 0:00:09.3]} 44. Qe5+ {[%clk
0:00:28.5]} 44... Kd8 {[%clk 0:00:09.2]} 45. Kd3 {[%clk 0:00:30]} 45... Qg6+
{[%clk 0:00:07.7]} 46. Qe4 {[%clk 0:00:30.3]} 46... Qg3+ {[%clk 0:00:07.4]} 47.
Kc4 {[%clk 0:00:30.3]} 47... Be7 {[%clk 0:00:06.6]} 48. h5 {[%clk 0:00:30.7]}
48... Qh2 {[%clk 0:00:04.5]} 49. a4 {[%clk 0:00:24.5]} 49... Qg1 {[%clk
0:00:03.1]} 50. Qd4 {[%clk 0:00:23.6]} 1-0

[Event "*** Titled Tuesday 3|2 Blitz"]
[Site "Chess.com"]
[Date "2015.03.03"]
[Round "3"]
[White "lorcho"]
[Black "Irochka83"]
[Result "0-1"]
[WhiteElo "2348"]
[BlackElo "2293"]
[TimeControl "180+2"]
[EndTime "11:39:20 PST"]
[Termination "Irochka83 won by resignation"]

1. e4 {[%clk 0:03:00]} 1... e6 {[%clk 0:01:45.3]} 2. d4 {[%clk 0:02:58.1]} 2...
d5 {[%clk 0:01:46.2]} 3. Nd2 {[%clk 0:02:59.6]} 3... c5 {[%clk 0:01:46.5]} 4.
exd5 {[%clk 0:02:58.4]} 4... Qxd5 {[%clk 0:01:48.4]} 5. Ngf3 {[%clk 0:02:59.8]}
5... cxd4 {[%clk 0:01:49]} 6. Bc4 {[%clk 0:03:00.9]} 6... Qd7 {[%clk 0:01:50.1]}
7. Qe2 {[%clk 0:03:01.8]} 7... a6 {[%clk 0:01:47.1]} 8. Nb3 {[%clk 0:02:58.6]}
8... b5 {[%clk 0:01:46.7]} 9. Bd3 {[%clk 0:03:00.2]} 9... Nc6 {[%clk 0:01:47]}
10. O-O {[%clk 0:02:55.7]} 10... Bb7 {[%clk 0:01:42.2]} 11. Rd1 {[%clk
0:02:57.2]} 11... Bd6 {[%clk 0:01:36.2]} 12. Be4 {[%clk 0:02:56.4]} 12... Nf6
{[%clk 0:01:29.9]} 13. Bxc6 {[%clk 0:02:57.2]} 13... Qxc6 {[%clk 0:01:29.7]} 14.
Nbxd4 {[%clk 0:02:59.1]} 14... Qe4 {[%clk 0:01:20.6]} 15. Qxe4 {[%clk
0:02:44.4]} 15... Nxe4 {[%clk 0:01:22.5]} 16. Ng5 {[%clk 0:02:45.6]} 16... Ke7
{[%clk 0:01:16.2]} 17. Nxe4 {[%clk 0:02:43.1]} 17... Bxe4 {[%clk 0:01:18.1]} 18.
Re1 {[%clk 0:02:43.2]} 18... Bg6 {[%clk 0:01:09.5]} 19. Bg5+ {[%clk 0:02:39]}
19... Kd7 {[%clk 0:01:06.6]} 20. c3 {[%clk 0:02:33.8]} 20... e5 {[%clk
0:00:57.6]} 21. Nb3 {[%clk 0:02:31]} 21... f6 {[%clk 0:00:54.2]} 22. Be3 {[%clk
0:02:32.2]} 22... Rhc8 {[%clk 0:00:53.6]} 23. Red1 {[%clk 0:02:32.6]} 23... Ke6
{[%clk 0:00:51]} 24. Na5 {[%clk 0:02:25]} 24... Be8 {[%clk 0:00:23.9]} 25. Rd2
{[%clk 0:02:24.3]} 25... Be7 {[%clk 0:00:23.4]} 26. Rad1 {[%clk 0:02:23.5]}
26... Rd8 {[%clk 0:00:24]} 27. Nb7 {[%clk 0:02:15.2]} 27... Rxd2 {[%clk
0:00:22.8]} 28. Rxd2 {[%clk 0:02:17.1]} 28... Rc8 {[%clk 0:00:23.8]} 29. f3
{[%clk 0:02:12.3]} 29... f5 {[%clk 0:00:23]} 30. Na5 {[%clk 0:02:09.3]} 30... g5
{[%clk 0:00:19.4]} 31. Nb3 {[%clk 0:02:09.4]} 31... f4 {[%clk 0:00:18.7]} 32.
Bf2 {[%clk 0:02:09.7]} 32... Bg6 {[%clk 0:00:19.1]} 33. Kf1 {[%clk 0:02:08.9]}
33... e4 {[%clk 0:00:18.6]} 34. Nd4+ {[%clk 0:02:07.5]} 34... Kf7 {[%clk
0:00:19.8]} 35. fxe4 {[%clk 0:02:09.4]} 35... Bxe4 {[%clk 0:00:21.4]} 36. g3
{[%clk 0:02:09.4]} 36... b4 {[%clk 0:00:18.6]} 37. gxf4 {[%clk 0:02:06.3]} 37...
gxf4 {[%clk 0:00:20.5]} 38. Ne2 {[%clk 0:02:02.2]} 38... f3 {[%clk 0:00:17.5]}
39. Ng3 {[%clk 0:02:00.3]} 39... Bg6 {[%clk 0:00:18.7]} 40. Bd4 {[%clk
0:01:56.7]} 40... bxc3 {[%clk 0:00:18]} 41. Bxc3 {[%clk 0:01:56]} 41... Bc5
{[%clk 0:00:17.7]} 42. h4 {[%clk 0:01:31.3]} 42... h5 {[%clk 0:00:13.3]} 43. Rd5
{[%clk 0:01:24.9]} 43... Be3 {[%clk 0:00:12.2]} 44. Nxh5 {[%clk 0:01:22.8]}
44... Be4 {[%clk 0:00:12.1]} 45. Rd6 {[%clk 0:01:16.5]} 45... Rg8 {[%clk
0:00:12.6]} 46. Rf6+ {[%clk 0:00:35.9]} 46... Ke7 {[%clk 0:00:13.4]} 47. Bb4+
{[%clk 0:00:36.4]} 47... Kd7 {[%clk 0:00:14.4]} 48. Rf7+ {[%clk 0:00:36.3]}
48... Kc6 {[%clk 0:00:15.6]} 49. Ng7 {[%clk 0:00:31.9]} 49... Bd3+ {[%clk
0:00:16.6]} 50. Ke1 {[%clk 0:00:33.2]} 50... f2+ {[%clk 0:00:17.4]} 51. Rxf2
{[%clk 0:00:34.6]} 51... Bxf2+ {[%clk 0:00:19.3]} 52. Kxf2 {[%clk 0:00:36.5]}
52... Rxg7 {[%clk 0:00:20.7]} 53. Ke3 {[%clk 0:00:38.4]} 53... Bc4 {[%clk
0:00:20.9]} 54. a3 {[%clk 0:00:38.3]} 54... Kb5 {[%clk 0:00:20.4]} 55. Bc3
{[%clk 0:00:39.1]} 55... Rh7 {[%clk 0:00:21.8]} 56. Bf6 {[%clk 0:00:39.9]} 56...
Ka4 {[%clk 0:00:22.9]} 57. Kf4 {[%clk 0:00:40.8]} 57... Kb3 {[%clk 0:00:22.7]}
58. Kg5 {[%clk 0:00:41.8]} 58... Bd3 {[%clk 0:00:23.7]} 59. h5 {[%clk
0:00:42.5]} 59... a5 {[%clk 0:00:24]} 60. h6 {[%clk 0:00:43.3]} 60... a4 {[%clk
0:00:25.2]} 61. Bc3 {[%clk 0:00:39.3]} 61... Rb7 {[%clk 0:00:25.5]} 62. Kf6
{[%clk 0:00:40.2]} 62... Bh7 {[%clk 0:00:25.6]} 63. Kg5 {[%clk 0:00:39.7]} 63...
Kc2 {[%clk 0:00:25.5]} 64. Kf6 {[%clk 0:00:40.8]} 64... Rxb2 {[%clk 0:00:26]}
65. Be5 {[%clk 0:00:37.1]} 65... Rb7 {[%clk 0:00:23.5]} 66. Bd6 {[%clk
0:00:37.8]} 66... Kb3 {[%clk 0:00:23.1]} 67. Bc5 {[%clk 0:00:38.5]} 67... Ka2
{[%clk 0:00:23.7]} 68. Bf8 {[%clk 0:00:38.9]} 68... Rb3 {[%clk 0:00:22.6]} 69.
Kg7 {[%clk 0:00:39.8]} 69... Be4 {[%clk 0:00:23.4]} 70. h7 {[%clk 0:00:41.1]}
0-1